fUSD/lending_fUSD_20260520
["ID","MTS","AMOUNT","RATE_DAILY","PERIOD"]
[422661651,1779221443000,-500.0,0.00014599,2]
[422661650,1779221443000,-500.0,0.00014599,2]
[422661649,1779221443000,-500.0,0.00014599,2]
[422661637,1779221443000,-150.0,0.00014598,2]
[422661660,1779221443000,-500.0,0.00014599,2]
[422661664,1779221443000,-500.0,0.00014599,2]
[422661666,1779221443000,-500.0,0.00014599,2]
[422661654,1779221443000,-500.0,0.00014599,2]
[422661662,1779221443000,-500.0,0.00014599,2]
[422661656,1779221443000,-500.0,0.00014599,2]
[422661679,1779221443000,-150.0,0.00014671,2]
[422661668,1779221443000,-2500000.0,0.000146,2]
[422661681,1779221443000,-1931.77013467,0.000147,2]
[422661670,1779221443000,-803.1,0.000146,2]
[422661680,1779221443000,-150.0,0.00014687,2]
[422661682,1779221443000,-3400.0,0.000147,5]
[422661604,1779221443000,-13700.0,0.000144,5]
[422661677,1779221443000,-150.0,0.00014653,2]
[422661652,1779221443000,-500.0,0.00014599,2]
[422661638,1779221443000,-500.0,0.00014598,2]
[422661673,1779221443000,-150.0,0.00014607,2]
[422661634,1779221443000,-1038.4245954,0.0001459,2]
[422661642,1779221443000,-500.0,0.00014599,2]
[422661607,1779221443000,-150.0,0.00014431,2]
[422661613,1779221443000,-150.0,0.00014487,2]
[422661614,1779221443000,-150.0,0.00014487,2]
[422661609,1779221443000,-500.0,0.0001444,2]
[422661610,1779221443000,-2060.05305337,0.00014442,2]
[422661612,1779221443000,-150.0,0.00014467,2]
[422661611,1779221443000,-150.0,0.00014447,2]
[422661615,1779221443000,-150.0,0.00014487,2]
[422661616,1779221443000,-150.0,0.00014487,2]
[422661617,1779221443000,-150.0,0.00014487,2]
[422661620,1779221443000,-1245.08499865,0.000145,2]
[422661631,1779221443000,-150.0,0.00014567,2]
[422661632,1779221443000,-150.0,0.00014587,2]
[422661618,1779221443000,-150.0,0.00014487,2]
[422661619,1779221443000,-150.0,0.00014487,2]
[422661630,1779221443000,-150.0,0.00014547,2]
[422661636,1779221443000,-150.0,0.00014592,2]
[422661644,1779221443000,-250.05,0.00014599,2]
[422661625,1779221443000,-150.0,0.00014513,2]
[422661624,1779221443000,-23255.5182649,0.00014507,2]
[422661629,1779221443000,-150.0,0.00014542,2]
[422661645,1779221443000,-500.0,0.00014599,2]
[422661626,1779221443000,-150.0,0.00014527,2]
[422661627,1779221443000,-500.0,0.00014542,2]
[422661623,1779221443000,-150.0,0.00014507,2]
[422661622,1779221443000,-17100.0,0.000145,5]
[422661621,1779221443000,-18790.94078405,0.000145,2]
[422661628,1779221443000,-1113.28,0.00014542,2]
[422661717,1779221444000,-150.0,0.0001482,2]
[422661721,1779221444000,-406.0,0.00014833,2]
[422661724,1779221444000,-21091.19165994,0.0001485,2]
[422661722,1779221444000,-439.0,0.00014834,2]
[422661720,1779221444000,-150.0,0.00014829,2]
[422661727,1779221444000,-150.0,0.00014875,2]
[422661719,1779221444000,-150.0,0.00014826,2]
[422661718,1779221444000,-355.0,0.00014824,2]
[422661716,1779221444000,-406.0,0.0001481,2]
[422661725,1779221444000,-150.0,0.00014861,2]
[422661723,1779221444000,-150.0,0.00014846,2]
[422661714,1779221444000,-350.0,0.00014804,2]
[422661729,1779221444000,-200.0,0.00014879,2]
[422661730,1779221444000,-406.0,0.00014884,2]
[422661742,1779221444000,-18790.94078404,0.000149,2]
[422661731,1779221444000,-150.0,0.00014886,2]
[422661728,1779221444000,-200.0,0.00014879,2]
[422661732,1779221444000,-56952.08652334,0.00014896,2]
[422661733,1779221444000,-2000.0,0.000149,2]
[422661735,1779221444000,-4779.0,0.000149,5]
[422661737,1779221444000,-1959.02506696,0.000149,2]
[422661734,1779221444000,-4935.9338,0.000149,2]
[422661736,1779221444000,-5676.58636403,0.000149,3]
[422661738,1779221444000,-3400.0,0.000149,5]
[422661740,1779221444000,-23255.5182649,0.000149,2]
[422661712,1779221444000,-1113.4298039,0.00014799,2]
[422661726,1779221444000,-150.0,0.00014866,2]
[422661715,1779221444000,-150.0,0.00014806,2]
[422661703,1779221444000,-406.0,0.0001479,2]
[422661713,1779221444000,-3400.0,0.000148,5]
[422661684,1779221444000,-18790.94078404,0.000147,2]
[422661685,1779221444000,-150.0,0.00014707,2]
[422661690,1779221444000,-150.0,0.00014727,2]
[422661691,1779221444000,-406.0,0.00014734,2]
[422661689,1779221444000,-600.0,0.00014726,2]
[422661692,1779221444000,-150.0,0.00014737,2]
[422661686,1779221444000,-150.0,0.00014709,2]
[422661688,1779221444000,-1300.0,0.00014726,2]
[422661687,1779221444000,-500.0,0.00014714,2]
[422661693,1779221444000,-150.0,0.00014737,2]
[422661695,1779221444000,-406.0,0.00014742,2]
[422661694,1779221444000,-150.0,0.00014737,2]
[422661711,1779221444000,-1113.28,0.00014799,2]
[422661696,1779221444000,-150.0,0.00014747,2]
[422661700,1779221444000,-150.0,0.00014764,2]
[422661698,1779221444000,-150.0,0.0001475,2]
[422661701,1779221444000,-150.0,0.00014767,2]
[422661699,1779221444000,-398.0,0.00014762,2]
[422661702,1779221444000,-150.0,0.00014786,2]
[422661705,1779221444000,-500.0,0.00014799,2]
[422661704,1779221444000,-406.0,0.00014798,2]
[422661706,1779221444000,-559.29366133,0.00014799,2]
[422661707,1779221444000,-1113.28,0.00014799,2]
[422661708,1779221444000,-1113.28,0.00014799,2]
[422661710,1779221444000,-1113.28,0.00014799,2]
[422661709,1779221444000,-1113.28,0.00014799,2]
[422661697,1779221444000,-406.0,0.00014748,2]
[422661743,1779221444000,-150.0,0.00014906,2]
[422661739,1779221444000,-2060.05305337,0.000149,2]
[422661744,1779221444000,-150.0,0.00014907,2]
[422661773,1779221444000,-500.0,0.00014995,2]
[422661774,1779221444000,-500.0,0.00014995,2]
[422661772,1779221444000,-500.0,0.00014995,2]
[422661788,1779221444000,-500.0,0.00014995,2]
[422661787,1779221444000,-500.0,0.00014995,2]
[422661779,1779221444000,-500.0,0.00014995,2]
[422661789,1779221444000,-500.0,0.00014995,2]
[422661790,1779221444000,-500.0,0.00014995,2]
[422661791,1779221444000,-500.0,0.00014995,2]
[422661784,1779221444000,-500.0,0.00014995,2]
[422661785,1779221444000,-500.0,0.00014995,2]
[422661781,1779221444000,-500.0,0.00014995,2]
[422661780,1779221444000,-500.0,0.00014995,2]
[422661783,1779221444000,-500.0,0.00014995,2]
[422661786,1779221444000,-500.0,0.00014995,2]
[422661782,1779221444000,-500.0,0.00014995,2]
[422661793,1779221444000,-500.0,0.00014995,2]
[422661794,1779221444000,-500.0,0.00014995,2]
[422661792,1779221444000,-500.0,0.00014995,2]
[422661798,1779221444000,-12136.0305889,0.00014996,2]
[422661800,1779221444000,-530488.7747084,0.00014996,2]
[422661797,1779221444000,-414.8124978,0.00014995,2]
[422661799,1779221444000,-27556.9307979,0.00014996,2]
[422661795,1779221444000,-500.0,0.00014995,2]
[422661796,1779221444000,-500.0,0.00014995,2]
[422661802,1779221444000,-3392.1919852,0.00014996,2]
[422661801,1779221444000,-45910.8092798,0.00014996,2]
[422661778,1779221444000,-500.0,0.00014995,2]
[422661769,1779221444000,-500.0,0.00014995,2]
[422661745,1779221444000,-290.93114458,0.00014908,2]
[422661767,1779221444000,-222.13151757,0.00014986,2]
[422661748,1779221444000,-406.0,0.00014928,2]
[422661741,1779221444000,-1245.08499863,0.000149,2]
[422661749,1779221444000,-150.0,0.00014931,2]
[422661746,1779221444000,-736.0,0.00014916,2]
[422661747,1779221444000,-150.0,0.00014926,2]
[422661750,1779221444000,-500.0,0.00014932,2]
[422661751,1779221444000,-150.0,0.00014946,2]
[422661752,1779221444000,-500.0,0.00014959,2]
[422661764,1779221444000,-152.75252403,0.00014986,2]
[422661753,1779221444000,-150.0,0.00014966,2]
[422661763,1779221444000,-152.10400649,0.00014986,2]
[422661765,1779221444000,-225.67224447,0.00014986,2]
[422661756,1779221444000,-500.0,0.00014978,2]
[422661775,1779221444000,-500.0,0.00014995,2]
[422661754,1779221444000,-417.0,0.00014969,2]
[422661760,1779221444000,-152.35107503,0.00014986,2]
[422661771,1779221444000,-500.0,0.00014995,2]
[422661768,1779221444000,-500.0,0.00014988,2]
[422661777,1779221444000,-500.0,0.00014995,2]
[422661776,1779221444000,-500.0,0.00014995,2]
[422661766,1779221444000,-153.99235667,0.00014986,2]
[422661770,1779221444000,-500.0,0.00014995,2]
[422661759,1779221444000,-284.58525916,0.00014986,2]
[422661755,1779221444000,-6541.7303824,0.00014976,2]
[422661762,1779221444000,-254.67783396,0.00014986,2]
[422661758,1779221444000,-1038.4245954,0.00014986,2]
[422661757,1779221444000,-88977.5894797,0.00014979,2]
[422661761,1779221444000,-170.41262241,0.00014986,2]
[422661823,1779221445000,-1008.41099095,0.00015,2]
[422661820,1779221445000,-1000.0,0.00015,2]
[422661822,1779221445000,-1000.0,0.00015,2]
[422661827,1779221445000,-151.0,0.00015,2]
[422661824,1779221445000,-151.0,0.00015,2]
[422661825,1779221445000,-151.0,0.00015,2]
[422661831,1779221445000,-151.0,0.00015,2]
[422661828,1779221445000,-151.0,0.00015,2]
[422661829,1779221445000,-151.0,0.00015,2]
[422661835,1779221445000,-200.0,0.00015,2]
[422661837,1779221445000,-500.0,0.00015,2]
[422661819,1779221445000,-1000.0,0.00015,2]
[422661834,1779221445000,-406.0,0.00015,2]
[422661826,1779221445000,-151.0,0.00015,2]
[422661821,1779221445000,-1000.0,0.00015,2]
[422661808,1779221445000,-300.0,0.00014999,2]
[422661818,1779221445000,-1000.0,0.00015,2]
[422661814,1779221445000,-3204475.8064581,0.00015,2]
[422661813,1779221445000,-666.0,0.00014999,2]
[422661811,1779221445000,-300.0,0.00014999,2]
[422661812,1779221445000,-300.0,0.00014999,2]
[422661809,1779221445000,-666.0,0.00014999,2]
[422661815,1779221445000,-215366.01370678,0.00015,2]
[422661816,1779221445000,-1000.0,0.00015,2]
[422661806,1779221445000,-292.55428223,0.00014999,2]
[422661810,1779221445000,-300.0,0.00014999,2]
[422661807,1779221445000,-850.44540735,0.00014999,2]
[422661838,1779221445000,-500.0,0.00015,2]
[422661803,1779221445000,-2401.8,0.00014996,2]
[422661804,1779221445000,-151.0,0.00014997,2]
[422661817,1779221445000,-1000.0,0.00015,2]
[422661805,1779221445000,-212.82417601,0.00014999,2]
[422661839,1779221445000,-500.0,0.00015,2]
[422661833,1779221445000,-151.0,0.00015,2]
[422661859,1779221445000,-500.0,0.00015,2]
[422661857,1779221445000,-500.0,0.00015,2]
[422661861,1779221445000,-500.0,0.00015,2]
[422661855,1779221445000,-500.0,0.00015,2]
[422661860,1779221445000,-500.0,0.00015,2]
[422661858,1779221445000,-500.0,0.00015,2]
[422661856,1779221445000,-500.0,0.00015,2]
[422661862,1779221445000,-500.0,0.00015,2]
[422661864,1779221445000,-1136117.94967759,0.00015,2]
[422661863,1779221445000,-850.0,0.00015,2]
[422661868,1779221445000,-277263.74579847,0.00015,2]
[422661876,1779221445000,-436.0,0.00014062,2]
[422661830,1779221445000,-151.0,0.00015,2]
[422661878,1779221445000,-22111.56690281,0.00015,2]
[422661870,1779221445000,-3448.25219006,0.00015,2]
[422661854,1779221445000,-500.0,0.00015,2]
[422661877,1779221445000,-3113.4941997,0.00015,2]
[422661851,1779221445000,-500.0,0.00015,2]
[422661853,1779221445000,-500.0,0.00015,2]
[422661832,1779221445000,-151.0,0.00015,2]
[422661836,1779221445000,-500.0,0.00015,2]
[422661843,1779221445000,-500.0,0.00015,2]
[422661841,1779221445000,-500.0,0.00015,2]
[422661844,1779221445000,-500.0,0.00015,2]
[422661845,1779221445000,-500.0,0.00015,2]
[422661847,1779221445000,-500.0,0.00015,2]
[422661846,1779221445000,-500.0,0.00015,2]
[422661850,1779221445000,-500.0,0.00015,2]
[422661842,1779221445000,-500.0,0.00015,2]
[422661848,1779221445000,-500.0,0.00015,2]
[422661849,1779221445000,-500.0,0.00015,2]
[422661840,1779221445000,-500.0,0.00015,2]
[422661852,1779221445000,-500.0,0.00015,2]
[422661879,1779221446000,-391.6760658,0.00015,2]
[422661881,1779221446000,-515.0,0.00014062,2]
[422661884,1779221446000,-875.89626483,0.00015,2]
[422661883,1779221446000,-2400.1,0.00015,2]
[422661882,1779221446000,-2269262.45372284,0.00015,2]
[422661880,1779221446000,-1025.49280924,0.00015,2]
[422661887,1779221446000,-520.48433958,0.00014062,2]
[422661886,1779221446000,-441.1759249,0.00014062,2]
[422661894,1779221446000,-100152.0,0.00015,2]
[422661893,1779221446000,-817.58733499,0.00015,2]
[422661885,1779221446000,-152.904878,0.00013698,2]
[422661889,1779221446000,-2589.57115365,0.00015,2]
[422661892,1779221446000,-652.92218985,0.00015,2]
[422661888,1779221446000,-2781.69465208,0.00015,2]
[422661898,1779221714000,-4262.587,0.00011602,2]
[422661897,1779221714000,-1200.0,0.00011601,2]
[422661901,1779221715000,-4918.676,0.00011747,2]
[422661899,1779221715000,-318.737,0.00011602,2]
[422661900,1779221715000,-300.0,0.00011746,2]
[422661902,1779221722000,151.0,0.00029987,120]
[422661904,1779221723000,151.0,0.00029987,120]
[422661903,1779221723000,151.0,0.00029987,120]
[422661907,1779221724000,151.0,0.00029987,120]
[422661906,1779221724000,151.0,0.00029987,120]
[422661905,1779221724000,151.0,0.00029987,120]
[422661911,1779221725000,151.0,0.00029987,120]
[422661910,1779221725000,151.0,0.00029987,120]
[422661909,1779221725000,151.0,0.00029987,120]
[422661908,1779221725000,151.0,0.00029987,120]
[422661912,1779221755000,-1100.0,0.00011747,2]
[422661913,1779221792000,3626.72,6.427e-05,2]
[422661914,1779221792000,3626.72,6.752e-05,2]
[422661915,1779221793000,3626.72,7.077e-05,2]
[422661918,1779221793000,3626.72,8.052e-05,2]
[422661917,1779221793000,3626.72,7.727e-05,2]
[422661916,1779221793000,3626.72,7.402e-05,2]
[422661922,1779221794000,3626.72,9.351e-05,2]
[422661921,1779221794000,3626.72,9.026e-05,2]
[422661920,1779221794000,3626.72,8.702e-05,2]
[422661919,1779221794000,3626.72,8.377e-05,2]
[422661923,1779221795000,3626.72,9.676e-05,2]
[422661926,1779221906000,-3626.72,0.00010651,2]
[422661927,1779221906000,-3119.84,0.00010976,2]
[422661924,1779221906000,-3626.72,0.00010001,2]
[422661925,1779221906000,-3626.72,0.00010326,2]
[422661928,1779221978000,1500.0,0.000115,4]
[422661929,1779222007000,500.0,0.000115,4]
[422661930,1779222079000,-1041.42,0.00010786,2]
[422661931,1779222080000,-1958.58,0.00010819,2]
[422661934,1779222105000,-500.0,0.00010876,2]
[422661933,1779222105000,-41.42,0.00010819,2]
[422661932,1779222105000,-211.9,0.00010779,2]
[422661935,1779222105000,-246.68,0.00010976,2]
[422661937,1779222205000,152.0,0.00011404,7]
[422661940,1779222289000,168.67,8.606e-05,2]
[422661944,1779222323000,-0.95,0.00010867,2]
[422661942,1779222323000,-1839.44,0.00010766,2]
[422661943,1779222323000,-198.63,0.00010798,2]
[422661941,1779222323000,-1960.98,0.00010757,2]
[422661945,1779222430000,3400.0,0.000115,4]
[422661946,1779222485000,10000.0,0.00030137,120]
[422661947,1779222540000,1000.0,0.00030136,120]
[422661948,1779222554000,-190.23737484,0.00010588,2]
[422661949,1779222586000,-4717.97262516,0.00010588,2]
[422661950,1779222586000,-200.0,0.00010722,2]
[422661951,1779222586000,-82.02737484,0.00010867,2]
[422661996,1779222632000,-4661.11,0.00011638,2]
[422661993,1779222632000,-150.0,0.00011637,2]
[422661986,1779222632000,-1960.98,0.00011564,2]
[422661989,1779222632000,-6800.0,0.000116,4]
[422661988,1779222632000,-160.93990208,0.00011581,2]
[422661990,1779222632000,-3626.72,0.00011626,2]
[422661985,1779222632000,-228.26604198,0.00011539,2]
[422661983,1779222632000,-99130.5674,0.00011539,2]
[422661980,1779222632000,-141.54712033,0.000113,2]
[422661991,1779222632000,-14387.58568603,0.00011629,2]
[422661982,1779222632000,-3626.72,0.00011301,2]
[422661970,1779222632000,-873.87782496,0.00011295,2]
[422661974,1779222632000,-300.0,0.000113,2]
[422661995,1779222632000,-1000.0,0.00011638,2]
[422661972,1779222632000,-1087.10217504,0.00011295,2]
[422661963,1779222632000,-88.87556694,0.00011201,2]
[422661967,1779222632000,-228.26604198,0.00011244,2]
[422661968,1779222632000,-163.19,0.00011269,2]
[422661965,1779222632000,-317.22613306,0.00011201,2]
[422661957,1779222632000,-266.06680694,0.00011026,2]
[422661961,1779222632000,-166.52,0.00011049,2]
[422661960,1779222632000,-6.01943306,0.00011026,2]
[422661958,1779222632000,-1688.89376,0.00011026,2]
[422661954,1779222632000,-150.0,0.00010959,2]
[422661953,1779222632000,-228.266042,0.00010949,2]
[422661952,1779222632000,-110.72690835,0.00010867,2]
[422661955,1779222632000,-150.0,0.00010959,2]
[422661956,1779222632000,-260.2,0.00010976,2]
[422661976,1779222632000,-412.89782496,0.000113,2]
[422661998,1779222632000,-361.237,0.00011638,2]
[422661978,1779222632000,-645.55505471,0.000113,2]
[422662001,1779222632000,-4170.3749,0.00011638,2]
[422662000,1779222632000,-45313.9933169,0.00011638,2]
[422662038,1779222632000,-94660.83242929,0.00011739,2]
[422662039,1779222632000,-292726.91935544,0.00011739,2]
[422662035,1779222632000,-150.0,0.00011738,2]
[422662037,1779222632000,-128315.8407479,0.00011739,2]
[422662036,1779222632000,-77266.23215247,0.00011739,2]
[422662034,1779222632000,-637.65266131,0.00011738,2]
[422662032,1779222632000,-500.0,0.00011738,2]
[422662031,1779222632000,-195.58116494,0.00011738,2]
[422662033,1779222632000,-339.50380187,0.00011738,2]
[422662027,1779222632000,-1098.07046975,0.00011738,3]
[422662029,1779222632000,-500.0,0.00011738,2]
[422662030,1779222632000,-180.48770886,0.00011738,2]
[422662028,1779222632000,-1098.07046975,0.00011738,3]
[422662025,1779222632000,-1098.07046974,0.00011738,3]
[422662040,1779222632000,-1254.41808677,0.00011739,2]
[422662022,1779222632000,-1184.94585685,0.00011729,2]
[422662026,1779222632000,-1098.07046975,0.00011738,3]
[422662003,1779222632000,-6803.7659,0.00011638,2]
[422662006,1779222632000,-2500.0,0.00011639,2]
[422662005,1779222632000,-1959.02506698,0.00011639,2]
[422662010,1779222632000,-1245.08499865,0.00011649,2]
[422662012,1779222632000,-6653.77192194,0.00011649,2]
[422662008,1779222632000,-919.22851442,0.00011649,2]
[422662015,1779222632000,-6049.0,0.00011699,2]
[422662018,1779222632000,-1244.76,0.00011699,14]
[422662017,1779222632000,-2002.8,0.00011699,2]
[422662023,1779222632000,-1000.0,0.00011737,2]
[422662020,1779222632000,-10200.0,0.000117,4]
[422662013,1779222632000,-160.93990209,0.0001168,2]
[422662041,1779222636000,231.7,0.00030082,120]
[422662047,1779222637000,-2947.50193043,0.00011637,2]
[422662080,1779222638000,-1131.984292,0.00011736,2]
[422662084,1779222638000,-1131.984292,0.00011736,2]
[422662093,1779222638000,-1131.984292,0.00011736,2]
[422662082,1779222638000,-1131.984292,0.00011736,2]
[422662085,1779222638000,-1131.984292,0.00011736,2]
[422662086,1779222638000,-1131.984292,0.00011736,2]
[422662083,1779222638000,-1131.984292,0.00011736,2]
[422662087,1779222638000,-1131.984292,0.00011736,2]
[422662089,1779222638000,-1131.984292,0.00011736,2]
[422662088,1779222638000,-1131.984292,0.00011736,2]
[422662092,1779222638000,-1131.984292,0.00011736,2]
[422662081,1779222638000,-1131.984292,0.00011736,2]
[422662099,1779222638000,-1131.984292,0.00011736,2]
[422662097,1779222638000,-1131.984292,0.00011736,2]
[422662095,1779222638000,-1131.984292,0.00011736,2]
[422662096,1779222638000,-1131.984292,0.00011736,2]
[422662091,1779222638000,-1131.984292,0.00011736,2]
[422662094,1779222638000,-1131.984292,0.00011736,2]
[422662098,1779222638000,-1131.984292,0.00011736,2]
[422662103,1779222638000,-1131.984292,0.00011736,2]
[422662100,1779222638000,-1131.984292,0.00011736,2]
[422662101,1779222638000,-1131.984292,0.00011736,2]
[422662104,1779222638000,-1131.984292,0.00011736,2]
[422662077,1779222638000,-1131.984292,0.00011736,2]
[422662105,1779222638000,-1131.984292,0.00011736,2]
[422662090,1779222638000,-1131.984292,0.00011736,2]
[422662079,1779222638000,-1131.984292,0.00011736,2]
[422662062,1779222638000,-1131.984292,0.00011736,2]
[422662076,1779222638000,-1131.984292,0.00011736,2]
[422662106,1779222638000,-1131.984292,0.00011736,2]
[422662049,1779222638000,-1280.13131938,0.00011637,2]
[422662048,1779222638000,-1221.94,0.00011637,2]
[422662051,1779222638000,-500.0,0.00011736,2]
[422662050,1779222638000,-52393.14338915,0.00011637,2]
[422662058,1779222638000,-500.0,0.00011736,2]
[422662057,1779222638000,-1131.984292,0.00011736,2]
[422662060,1779222638000,-156.6477215,0.00011736,2]
[422662054,1779222638000,-500.0,0.00011736,2]
[422662052,1779222638000,-175.61273857,0.00011736,2]
[422662056,1779222638000,-575.18242857,0.00011736,2]
[422662053,1779222638000,-613.75413033,0.00011736,2]
[422662059,1779222638000,-1131.984292,0.00011736,2]
[422662055,1779222638000,-1131.984292,0.00011736,2]
[422662061,1779222638000,-1131.984292,0.00011736,2]
[422662064,1779222638000,-1131.984292,0.00011736,2]
[422662065,1779222638000,-1131.984292,0.00011736,2]
[422662066,1779222638000,-1131.984292,0.00011736,2]
[422662063,1779222638000,-1131.984292,0.00011736,2]
[422662069,1779222638000,-1131.984292,0.00011736,2]
[422662073,1779222638000,-1131.984292,0.00011736,2]
[422662072,1779222638000,-1131.984292,0.00011736,2]
[422662067,1779222638000,-1131.984292,0.00011736,2]
[422662068,1779222638000,-1131.984292,0.00011736,2]
[422662070,1779222638000,-1131.984292,0.00011736,2]
[422662074,1779222638000,-1131.984292,0.00011736,2]
[422662075,1779222638000,-1131.984292,0.00011736,2]
[422662078,1779222638000,-1131.984292,0.00011736,2]
[422662107,1779222638000,-1131.984292,0.00011736,2]
[422662102,1779222638000,-1131.984292,0.00011736,2]
[422662109,1779222638000,-1131.984292,0.00011736,2]
[422662137,1779222638000,-203.9,0.00011836,2]
[422662141,1779222638000,-203.9,0.00011836,2]
[422662144,1779222638000,-204.0,0.00011836,2]
[422662138,1779222638000,-203.9,0.00011836,2]
[422662143,1779222638000,-203.9,0.00011836,2]
[422662146,1779222638000,-1098.07046975,0.00011838,3]
[422662147,1779222638000,-1098.07046975,0.00011838,3]
[422662148,1779222638000,-500.0,0.00011838,2]
[422662149,1779222638000,-500.0,0.00011838,2]
[422662153,1779222638000,-238.0,0.00011839,2]
[422662154,1779222638000,-1500000.0,0.00011839,2]
[422662155,1779222638000,-33191.258,0.00011849,2]
[422662139,1779222638000,-203.9,0.00011836,2]
[422662151,1779222638000,-235.88871284,0.00011838,2]
[422662156,1779222638000,-4935.9338,0.00011849,2]
[422662159,1779222638000,-166.52,0.00011961,2]
[422662157,1779222638000,-17100.0,0.000119,4]
[422662158,1779222638000,-3626.72,0.00011951,2]
[422662160,1779222638000,-160.0,0.00011969,2]
[422662161,1779222638000,-208.58623393,0.00011986,2]
[422662165,1779222638000,-2000.0,0.00012171,2]
[422662162,1779222638000,-45313.99331683,0.00012026,2]
[422662163,1779222638000,-500.0,0.00012112,2]
[422662166,1779222638000,-919.22851437,0.00012191,2]
[422662164,1779222638000,-1041.42,0.00012134,2]
[422662108,1779222638000,-1131.984292,0.00011736,2]
[422662150,1779222638000,-400.15788288,0.00011838,2]
[422662140,1779222638000,-203.9,0.00011836,2]
[422662152,1779222638000,-238.0,0.00011839,2]
[422662142,1779222638000,-203.9,0.00011836,2]
[422662145,1779222638000,-1098.07046973,0.00011837,3]
[422662111,1779222638000,-1131.984292,0.00011736,2]
[422662112,1779222638000,-1131.984292,0.00011736,2]
[422662115,1779222638000,-1131.984292,0.00011736,2]
[422662113,1779222638000,-1131.984292,0.00011736,2]
[422662117,1779222638000,-1131.984292,0.00011736,2]
[422662118,1779222638000,-1131.984292,0.00011736,2]
[422662123,1779222638000,-1131.984292,0.00011736,2]
[422662120,1779222638000,-1131.984292,0.00011736,2]
[422662114,1779222638000,-1131.984292,0.00011736,2]
[422662119,1779222638000,-1131.984292,0.00011736,2]
[422662116,1779222638000,-1131.984292,0.00011736,2]
[422662122,1779222638000,-1131.984292,0.00011736,2]
[422662121,1779222638000,-1131.984292,0.00011736,2]
[422662135,1779222638000,-161.19452201,0.00011836,2]
[422662136,1779222638000,-203.9,0.00011836,2]
[422662125,1779222638000,-18790.94078405,0.00011749,2]
[422662133,1779222638000,-45313.99331683,0.00011832,2]
[422662134,1779222638000,-1960.98,0.00011833,2]
[422662132,1779222638000,-1184.94585685,0.00011829,2]
[422662128,1779222638000,-238.0,0.00011794,2]
[422662110,1779222638000,-1131.984292,0.00011736,2]
[422662131,1779222638000,-336.6022,0.00011808,2]
[422662126,1779222638000,-1664.31014341,0.00011749,2]
[422662130,1779222638000,-13700.0,0.000118,4]
[422662127,1779222638000,-160.93990209,0.0001178,2]
[422662124,1779222638000,-1905775.75722813,0.00011739,2]
[422662129,1779222638000,-250.0,0.00011794,2]
[422662205,1779222639000,-600.0,0.00013356,2]
[422662207,1779222639000,-45313.99331683,0.00013382,2]
[422662206,1779222639000,-1300.0,0.00013356,2]
[422662204,1779222639000,-500.0,0.00013356,2]
[422662203,1779222639000,-1000.0,0.00013334,2]
[422662201,1779222639000,-18790.94078404,0.00013325,2]
[422662200,1779222639000,-1245.08499863,0.00013275,2]
[422662199,1779222639000,-919.22851437,0.00013275,2]
[422662202,1779222639000,-1664.3101434,0.00013325,2]
[422662209,1779222639000,-1041.42,0.00013483,2]
[422662208,1779222639000,-500.0,0.00013482,2]
[422662198,1779222639000,-1959.02506696,0.0001327,2]
[422662222,1779222639000,-152.22131517,0.00013518,2]
[422662210,1779222639000,-150.0,0.00013488,2]
[422662213,1779222639000,-150.0,0.00013488,2]